fUST/lending_fUST_20240921
["ID","MTS","AMOUNT","RATE_DAILY","PERIOD"]
[338704402,1726888247402,-207.000777,0.00014492,2]
[338704404,1726888247414,-150.112233,0.000145,2]
[338704405,1726888247426,-150.112233,0.000145,2]
[338704407,1726888247436,-153.0,0.000145,2]
[338704409,1726888247446,-150.112233,0.000146,2]
[338704411,1726888247456,-150.112233,0.000146,2]
[338704412,1726888247466,-1558.33689762,0.00014644,2]
[338704414,1726888247476,-150.112233,0.000147,2]
[338704416,1726888247486,-500.0,0.00014727,2]
[338704417,1726888247496,-1249.19,0.00014727,2]
[338704419,1726888247506,-298.24468417,0.00014727,2]
[338704421,1726888247516,-744.8,0.00014727,2]
[338704423,1726888247526,-500.0,0.00014727,2]
[338704425,1726888247536,-312.87577202,0.00014727,2]
[338704426,1726888247546,-19197.49,0.00014727,2]
[338704428,1726888247556,-3128.96,0.00014727,2]
[338704430,1726888247566,-172.48214676,0.00014728,2]
[338704431,1726888247575,-547.33162251,0.00014728,2]
[338704433,1726888247585,-500.0,0.00014728,2]
[338704435,1726888247596,-619.18,0.00014728,2]
[338704437,1726888247605,-500.0,0.00014728,2]
[338704438,1726888247615,-500.0,0.00014728,2]
[338704440,1726888247625,-500.0,0.00014728,2]
[338704442,1726888247635,-500.0,0.00014728,2]
[338704444,1726888247646,-737.12,0.00014728,2]
[338704445,1726888247656,-500.0,0.00014728,2]
[338704447,1726888247666,-500.0,0.00014728,2]
[338704449,1726888247676,-911.99,0.00014728,2]
[338704451,1726888247687,-500.0,0.00014728,2]
[338704452,1726888247698,-500.0,0.00014728,2]
[338704454,1726888247709,-500.0,0.00014728,2]
[338704456,1726888247719,-505.26834954,0.00014728,2]
[338704458,1726888247728,-500.0,0.00014728,2]
[338704460,1726888247738,-500.0,0.00014728,2]
[338704461,1726888247749,-500.0,0.00014728,2]
[338704463,1726888247758,-500.0,0.00014728,2]
[338704465,1726888247768,-500.0,0.00014728,2]
[338704467,1726888247778,-500.0,0.00014728,2]
[338704468,1726888247789,-500.0,0.00014728,2]
[338704470,1726888247799,-580.82,0.00014728,2]
[338704472,1726888247809,-500.0,0.00014728,2]
[338704474,1726888247819,-500.0,0.00014728,2]
[338704475,1726888247829,-500.0,0.00014728,2]
[338704477,1726888247839,-232.36,0.00014728,2]
[338704479,1726888247849,-500.0,0.00014728,2]
[338704481,1726888247858,-500.0,0.00014728,2]
[338704482,1726888247868,-500.0,0.00014728,2]
[338704484,1726888247878,-500.0,0.00014728,2]
[338704486,1726888247888,-669.75155,0.00014728,2]
[338704488,1726888247898,-669.75155,0.00014728,2]
[338704489,1726888247908,-300.364786,0.00014728,2]
[338704491,1726888247919,-151.0,0.00014728,2]
[338704493,1726888247929,-500.0,0.00014728,2]
[338704495,1726888247939,-151.0,0.00014728,2]
[338704496,1726888247949,-500.0,0.00014728,2]
[338704498,1726888247959,-500.0,0.00014728,2]
[338704500,1726888247969,-152.341971,0.00014728,2]
[338704502,1726888247979,-500.0,0.00014728,2]
[338704503,1726888247989,-152.341971,0.00014728,2]
[338704505,1726888247999,-500.0,0.00014728,2]
[338704507,1726888248010,-500.0,0.00014728,2]
[338704509,1726888248020,-500.0,0.00014728,2]
[338704510,1726888248029,-500.0,0.00014728,2]
[338704512,1726888248039,-500.0,0.00014728,2]
[338704514,1726888248049,-500.0,0.00014728,2]
[338704516,1726888248060,-500.0,0.00014728,2]
[338704517,1726888248070,-500.0,0.00014728,2]
[338704519,1726888248079,-500.0,0.00014728,2]
[338704521,1726888248089,-500.0,0.00014728,2]
[338704523,1726888248099,-621.5272717,0.00014728,2]
[338704524,1726888248109,-500.0,0.00014728,2]
[338704526,1726888248120,-500.0,0.00014728,2]
[338704528,1726888248130,-500.0,0.00014728,2]
[338704530,1726888248140,-500.0,0.00014728,2]
[338704531,1726888248150,-500.0,0.00014728,2]
[338704533,1726888248160,-463.620124,0.00014728,2]
[338704535,1726888248171,-632.95,0.00014728,2]
[338704537,1726888248181,-500.0,0.00014728,2]
[338704539,1726888248191,-463.620124,0.00014728,2]
[338704540,1726888248200,-389.34,0.00014728,2]
[338704542,1726888248211,-500.0,0.00014728,2]
[338704544,1726888248221,-500.0,0.00014728,2]
[338704546,1726888248231,-500.0,0.00014728,2]
[338704547,1726888248241,-500.0,0.00014728,2]
[338704549,1726888248252,-500.0,0.00014728,2]
[338704551,1726888248262,-500.0,0.00014728,2]
[338704553,1726888248274,-500.0,0.00014728,2]
[338704554,1726888248285,-500.0,0.00014728,2]
[338704556,1726888248295,-434.778599,0.00014728,2]
[338704558,1726888248306,-151.0,0.00014728,2]
[338704560,1726888248317,-434.778599,0.00014728,2]
[338704561,1726888248326,-500.0,0.00014728,2]
[338704563,1726888248338,-505.47280466,0.00014728,2]
[338704565,1726888248348,-500.0,0.00014728,2]
[338704567,1726888248358,-500.0,0.00014728,2]
[338704569,1726888248369,-500.0,0.00014728,2]
[338704571,1726888248389,-224.977347,0.00014728,2]
[338704573,1726888248401,-224.977347,0.00014728,2]
[338704574,1726888248412,-903.14,0.00014728,2]
[338704576,1726888248424,-500.0,0.00014728,2]
[338704578,1726888248434,-151.0,0.00014728,2]
[338704580,1726888248443,-501.4104444,0.00014728,2]
[338704581,1726888248454,-500.0,0.00014728,2]
[338704583,1726888248464,-1191.91,0.00014728,2]
[338704585,1726888248475,-500.0,0.00014728,2]
[338704587,1726888248484,-500.0,0.00014728,2]
[338704589,1726888248495,-502.09002201,0.00014728,2]
[338704590,1726888248506,-468.04690148,0.00014728,2]
[338704592,1726888248517,-817.09,0.00014728,2]
[338704594,1726888248528,-1314.639261,0.00014728,2]
[338704596,1726888248538,-1314.639261,0.00014728,2]
[338704598,1726888248548,-308.100268,0.00014728,2]
[338704600,1726888248559,-500.0,0.00014728,2]
[338704601,1726888248568,-500.0,0.00014728,2]
[338704603,1726888248578,-308.100268,0.00014728,2]
[338704605,1726888248588,-500.0,0.00014728,2]
[338704607,1726888248598,-500.0,0.00014728,2]
[338704608,1726888248607,-500.0,0.00014728,2]
[338704610,1726888248617,-500.0,0.00014728,2]
[338704612,1726888248628,-500.0,0.00014728,2]
[338704614,1726888248638,-631.16809438,0.00014731,2]
[338704616,1726888248648,-200.0,0.00014731,2]
[338704618,1726888248658,-500.0,0.00014731,2]
[338704619,1726888248669,-151.0,0.00014731,2]
[338704621,1726888248679,-162.969141,0.00014731,2]
[338704623,1726888248689,-226.728145,0.00014731,2]
[338704624,1726888248700,-226.728145,0.00014731,2]
[338704626,1726888248710,-917.115187,0.00014731,2]
[338704628,1726888248720,-917.115187,0.00014731,2]
[338704629,1726888248730,-551.255587,0.00014731,2]
[338704631,1726888248740,-551.255587,0.00014731,2]
[338704633,1726888248751,-151.0,0.00014731,2]
[338704634,1726888248761,-151.0,0.00014733,2]
[338704636,1726888248771,-151.0,0.00014733,2]
[338704638,1726888248781,-151.0,0.00014733,2]
[338704640,1726888248791,-159.702976,0.00014733,2]
[338704641,1726888248802,-599.90742919,0.00014744,2]
[338704643,1726888248813,-500.0,0.00014744,2]
[338704645,1726888248824,-500.0,0.00014744,2]
[338704647,1726888248836,-500.0,0.00014744,2]
[338704650,1726888248985,-500.0,0.00014744,2]
[338704651,1726888249012,-500.0,0.00014744,2]
[338704652,1726888249022,-500.0,0.00014744,2]
[338704653,1726888249031,-876.01,0.00014744,2]
[338704654,1726888249040,-500.0,0.00014744,2]
[338704655,1726888249049,-500.0,0.00014744,2]
[338704656,1726888249059,-500.0,0.00014744,2]
[338704657,1726888249068,-537.58,0.00014744,2]
[338704658,1726888249078,-550.71491705,0.00014744,2]
[338704659,1726888249088,-589.98,0.00014744,2]
[338704660,1726888249097,-552.95,0.00014744,2]
[338704661,1726888249106,-511.06,0.00014744,2]
[338704662,1726888249116,-500.0,0.00014744,2]
[338704663,1726888249126,-610.58,0.00014744,2]
[338704664,1726888249136,-634.7,0.00014744,2]
[338704665,1726888249146,-500.0,0.00014744,2]
[338704666,1726888249156,-500.0,0.00014744,2]
[338704667,1726888249166,-500.0,0.00014744,2]
[338704668,1726888249176,-500.0,0.00014744,2]
[338704669,1726888249186,-500.0,0.00014744,2]
[338704670,1726888249196,-273.7810641,0.00014744,2]
[338704671,1726888249205,-169.32233652,0.00014744,2]
[338704672,1726888249215,-500.0,0.00014744,2]
[338704673,1726888249225,-508.19981016,0.00014744,2]
[338704674,1726888249235,-502.7441512,0.00014744,2]
[338704675,1726888249244,-500.0,0.00014744,2]
[338704676,1726888249253,-500.0,0.00014744,2]
[338704678,1726888249263,-500.0,0.00014744,2]
[338704679,1726888249272,-500.0,0.00014744,2]
[338704680,1726888249282,-500.0,0.00014744,2]
[338704681,1726888249291,-500.0,0.00014744,2]
[338704683,1726888249301,-554.95,0.00014744,2]
[338704684,1726888249311,-500.0,0.00014744,2]
[338704686,1726888249320,-500.0,0.00014744,2]
[338704688,1726888249329,-500.0,0.00014744,2]
[338704690,1726888249339,-1662.03,0.00014744,2]
[338704692,1726888249348,-501.61666094,0.00014744,2]
[338704694,1726888249358,-503.54545512,0.00014744,2]
[338704696,1726888249368,-500.0,0.00014744,2]
[338704698,1726888249381,-500.0,0.00014744,2]
[338704700,1726888249391,-500.0,0.00014744,2]
[338704702,1726888249400,-226.465204,0.00014744,2]
[338704704,1726888249410,-226.465204,0.00014744,2]
[338704706,1726888249420,-151.0,0.00014744,2]
[338704707,1726888249429,-151.0,0.00014744,2]
[338704709,1726888249439,-151.0,0.00014744,2]
[338704712,1726888249448,-151.0,0.00014755,2]
[338704714,1726888249458,-151.0,0.00014755,2]
[338704716,1726888249468,-151.0,0.00014755,2]
[338704718,1726888249478,-151.0,0.00014755,2]
[338704720,1726888249488,-151.0,0.00014755,2]
[338704721,1726888249497,-151.0,0.00014755,2]
[338704723,1726888249507,-151.0,0.00014776,2]
[338704725,1726888249516,-612.063777,0.00014786,2]
[338704727,1726888249526,-612.063777,0.00014786,2]
[338704729,1726888249535,-1128.84,0.00014842,2]
[338704731,1726888249545,-198.24347537,0.00014842,2]
[338704733,1726888249555,-1097.41823003,0.00014869,2]
[338704735,1726888249564,-5860.092,0.00014904,2]
[338704738,1726888249574,-244.3954,0.00014925,2]
[338704739,1726888249584,-150.85,0.00014945,2]
[338704741,1726888249594,-150.0,0.00014945,2]
[338704743,1726888249604,-220.767,0.00014945,2]
[338704745,1726888249614,-250.996,0.00014945,2]
[338704747,1726888249623,-610.024,0.00014945,2]
[338704749,1726888249632,-153.946,0.00014945,2]
[338704751,1726888249642,-1216.0,0.00014945,2]
[338704753,1726888249651,-999.99999902,0.0001498,2]
[338704755,1726888249661,-151.0,0.00014989,2]
[338704757,1726888249671,-151.523071,0.00014989,2]
[338704759,1726888249680,-151.0,0.00014989,2]
[338704761,1726888249690,-151.0,0.00014989,2]
[338704763,1726888249700,-263.497965,0.00014989,2]
[338704765,1726888249709,-151.0,0.00014989,2]
[338704767,1726888249719,-151.0,0.00014989,2]
[338704769,1726888249728,-227.021571,0.00014989,2]
[338704771,1726888249738,-227.021571,0.00014989,2]
[338704773,1726888249747,-151.0,0.00014989,2]
[338704775,1726888249757,-213.840287,0.00014989,2]
[338704777,1726888249766,-213.840287,0.00014989,2]
[338704779,1726888249776,-158.55,0.0001499,2]
[338704781,1726888249785,-158.55,0.0001499,2]
[338704783,1726888249794,-158.55,0.0001499,2]
[338704785,1726888249803,-158.55,0.0001499,2]
[338704787,1726888249812,-151.0,0.0001499,2]
[338704789,1726888249822,-151.0,0.0001499,2]
[338704791,1726888249831,-151.0,0.0001499,2]
[338704793,1726888249840,-227.021571,0.0001499,2]
[338704795,1726888249849,-227.021571,0.0001499,2]
[338704797,1726888249859,-151.0,0.0001499,2]
[338704799,1726888249868,-213.840287,0.0001499,2]
[338704801,1726888249877,-213.840287,0.0001499,2]
[338704803,1726888249887,-410.07372012,0.00014999,2]
[338704805,1726888249897,-12070.00341736,0.00014999,2]
[338704807,1726888249907,-160.0,0.00014999,2]
[338704809,1726888249917,-42120.78904569,0.00015,2]
[338704811,1726888249926,-151.0,0.00015,2]
[338704813,1726888249936,-151.0,0.00015,2]
[338704815,1726888249945,-151.0,0.00015,2]
[338704817,1726888249954,-207.000777,0.00015,2]
[338704819,1726888249964,-500.0,0.00015001,2]
[338704821,1726888249974,-1249.19,0.00015001,2]
[338704823,1726888249983,-744.8,0.00015001,2]
[338704825,1726888249992,-500.0,0.00015001,2]
[338704827,1726888250002,-19197.49,0.00015001,2]
[338704829,1726888250012,-3128.96,0.00015001,2]
[338704831,1726888250021,-500.0,0.00015002,2]
[338704833,1726888250031,-619.18,0.00015002,2]
[338704835,1726888250041,-500.0,0.00015002,2]
[338704837,1726888250052,-500.0,0.00015002,2]
[338704839,1726888250062,-500.0,0.00015002,2]
[338704841,1726888250073,-500.0,0.00015002,2]
[338704843,1726888250083,-737.12,0.00015002,2]
[338704845,1726888250094,-500.0,0.00015002,2]
[338704848,1726888250106,-500.0,0.00015002,2]
[338704850,1726888250117,-911.99,0.00015002,2]
[338704852,1726888250128,-500.0,0.00015002,2]
[338704854,1726888250139,-500.0,0.00015002,2]
[338704856,1726888250150,-500.0,0.00015002,2]
[338704858,1726888250159,-500.0,0.00015002,2]
[338704860,1726888250170,-500.0,0.00015002,2]
[338704862,1726888250179,-500.0,0.00015002,2]
[338704864,1726888250189,-500.0,0.00015002,2]
[338704867,1726888250199,-500.0,0.00015002,2]
[338704869,1726888250210,-500.0,0.00015002,2]
[338704871,1726888250220,-151.0,0.00015002,2]
[338704873,1726888250230,-500.0,0.00015002,2]
[338704875,1726888250239,-192.671463,0.00015002,2]
[338704877,1726888250248,-580.82,0.00015002,2]
[338704879,1726888250257,-500.0,0.00015002,2]
[338704881,1726888250267,-500.0,0.00015002,2]
[338704883,1726888250276,-500.0,0.00015002,2]
[338704885,1726888250286,-500.0,0.00015002,2]
[338704886,1726888250295,-500.0,0.00015002,2]
[338704888,1726888250305,-500.0,0.00015002,2]
[338704890,1726888250314,-500.0,0.00015002,2]
[338704892,1726888250323,-669.75155,0.00015002,2]
[338704894,1726888250333,-669.75155,0.00015002,2]
[338704896,1726888250342,-151.0,0.00015002,2]
[338704898,1726888250351,-500.0,0.00015002,2]
[338704900,1726888250361,-151.0,0.00015002,2]
[338704902,1726888250370,-197.73339282,0.00015002,2]
[338704904,1726888250384,-500.0,0.00015002,2]
[338704906,1726888250393,-152.341971,0.00015002,2]
[338704908,1726888250403,-500.0,0.00015002,2]
[338704910,1726888250412,-152.341971,0.00015002,2]
[338704912,1726888250423,-500.0,0.00015002,2]
[338704914,1726888250433,-500.0,0.00015002,2]
[338704916,1726888250441,-500.0,0.00015002,2]
[338704918,1726888250451,-500.0,0.00015002,2]
[338704920,1726888250461,-500.0,0.00015002,2]
[338704922,1726888250472,-500.0,0.00015002,2]
[338704924,1726888250481,-500.0,0.00015002,2]
[338704926,1726888250491,-500.0,0.00015002,2]
[338704928,1726888250500,-500.0,0.00015002,2]
[338704930,1726888250512,-506.2857591,0.00015002,2]
[338704932,1726888250521,-254.04200118,0.00015002,2]
[338704934,1726888250531,-518.70990399,0.00015002,2]
[338704936,1726888250541,-500.0,0.00015002,2]
[338704938,1726888250550,-500.0,0.00015002,2]
[338704940,1726888250559,-451.22539677,0.00015002,2]
[338704942,1726888250569,-463.620124,0.00015002,2]
[338704944,1726888250578,-632.95,0.00015002,2]
[338704946,1726888250588,-500.0,0.00015002,2]
[338704948,1726888250597,-463.620124,0.00015002,2]
[338704950,1726888250607,-500.0,0.00015002,2]
[338704953,1726888250617,-500.0,0.00015002,2]
[338704955,1726888250626,-500.0,0.00015002,2]
[338704957,1726888250636,-500.0,0.00015002,2]
[338704959,1726888250646,-500.0,0.00015002,2]
[338704961,1726888250655,-500.0,0.00015002,2]
[338704963,1726888250665,-500.0,0.00015002,2]
[338704964,1726888250675,-500.0,0.00015002,2]
[338704967,1726888250684,-434.778599,0.00015002,2]
[338704968,1726888250694,-151.0,0.00015002,2]
[338704970,1726888250703,-434.778599,0.00015002,2]
[338704972,1726888250713,-589.85185582,0.00015002,2]
[338704974,1726888250722,-503.86863484,0.00015002,2]
[338704976,1726888250732,-500.0,0.00015002,2]
[338704979,1726888250742,-500.0,0.00015002,2]
[338704981,1726888250752,-224.977347,0.00015002,2]
[338704983,1726888250761,-224.977347,0.00015002,2]
[338704985,1726888250771,-903.14,0.00015002,2]
[338704987,1726888250780,-500.0,0.00015002,2]
[338704989,1726888250789,-151.0,0.00015002,2]
[338704991,1726888250798,-500.0,0.00015002,2]
[338704993,1726888250808,-1191.91,0.00015002,2]
[338704995,1726888250817,-500.0,0.00015002,2]
[338704997,1726888250826,-500.0,0.00015002,2]
[338704999,1726888250835,-817.09,0.00015002,2]
[338705001,1726888250844,-1314.639261,0.00015002,2]
[338705003,1726888250854,-1314.639261,0.00015002,2]
[338705005,1726888250863,-308.100268,0.00015002,2]
[338705007,1726888250872,-500.0,0.00015002,2]
[338705009,1726888250882,-500.0,0.00015002,2]
[338705011,1726888250891,-308.100268,0.00015002,2]
[338705013,1726888250900,-500.0,0.00015002,2]
[338705015,1726888250910,-500.0,0.00015002,2]
[338705017,1726888250923,-509.68797545,0.00015002,2]
[338705019,1726888250933,-500.0,0.00015002,2]
[338705021,1726888250942,-151.0,0.00015005,2]
[338705023,1726888250952,-154.576598,0.00015005,2]
[338705025,1726888250961,-152.064328,0.00015005,2]
[338705027,1726888250970,-265.886144,0.00015005,2]
[338705029,1726888250979,-265.886144,0.00015005,2]
[338705031,1726888250989,-227.021571,0.00015005,2]
[338705033,1726888250998,-227.021571,0.00015005,2]
[338705035,1726888251007,-200.0,0.00015005,2]
[338705037,1726888251016,-500.0,0.00015005,2]
[338705039,1726888251026,-151.0,0.00015005,2]
[338705041,1726888251035,-213.840287,0.00015005,2]
[338705043,1726888251044,-213.840287,0.00015005,2]
[338705045,1726888251053,-151.0,0.00015005,2]
[338705047,1726888251062,-226.728145,0.00015005,2]
[338705049,1726888251072,-226.728145,0.00015005,2]
[338705051,1726888251081,-917.115187,0.00015005,2]
[338705053,1726888251090,-917.115187,0.00015005,2]
[338705055,1726888251099,-551.255587,0.00015005,2]
[338705057,1726888251108,-551.255587,0.00015005,2]
[338705059,1726888251117,-151.0,0.00015005,2]
[338705061,1726888251127,-151.0,0.00015017,2]
[338705063,1726888251136,-151.0,0.00015017,2]
[338705065,1726888251145,-151.0,0.00015017,2]
[338705067,1726888251154,-151.0,0.00015018,2]
[338705069,1726888251163,-151.0,0.00015018,2]
[338705071,1726888251174,-260.82529819,0.00015018,2]
[338705073,1726888251184,-500.0,0.00015018,2]
[338705075,1726888251195,-500.0,0.00015018,2]
[338705077,1726888251205,-500.0,0.00015018,2]
[338705079,1726888251216,-182.76808772,0.00015018,2]
[338705081,1726888251225,-500.0,0.00015018,2]
[338705083,1726888251234,-876.01,0.00015018,2]
[338705085,1726888251244,-500.0,0.00015018,2]
[338705087,1726888251253,-500.0,0.00015018,2]
[338705089,1726888251263,-500.0,0.00015018,2]
[338705091,1726888251274,-537.58,0.00015018,2]
[338705093,1726888251283,-589.98,0.00015018,2]
[338705095,1726888251292,-552.95,0.00015018,2]
[338705097,1726888251302,-511.06,0.00015018,2]
[338705099,1726888251311,-500.0,0.00015018,2]
[338705101,1726888251322,-610.58,0.00015018,2]
[338705103,1726888251332,-634.7,0.00015018,2]
[338705105,1726888251343,-500.0,0.00015018,2]
[338705107,1726888251354,-500.0,0.00015018,2]
[338705109,1726888251363,-500.0,0.00015018,2]
[338705111,1726888251373,-500.0,0.00015018,2]
[338705113,1726888251386,-500.0,0.00015018,2]
[338705115,1726888251395,-500.0,0.00015018,2]
[338705117,1726888251404,-500.0,0.00015018,2]
[338705119,1726888251415,-500.0,0.00015018,2]
[338705121,1726888251425,-500.0,0.00015018,2]
[338705123,1726888251434,-500.0,0.00015018,2]
[338705125,1726888251443,-285.95029188,0.00015018,2]
[338705127,1726888251452,-505.18049513,0.00015018,2]
[338705128,1726888251461,-554.95,0.00015018,2]
[338705130,1726888251470,-500.0,0.00015018,2]
[338705132,1726888251479,-500.0,0.00015018,2]
[338705134,1726888251489,-500.0,0.00015018,2]
[338705136,1726888251498,-1662.03,0.00015018,2]
[338705138,1726888251507,-500.0,0.00015018,2]
[338705140,1726888251516,-500.0,0.00015018,2]
[338705142,1726888251525,-500.0,0.00015018,2]
[338705143,1726888251534,-226.465204,0.00015018,2]
[338705146,1726888251543,-226.465204,0.00015018,2]
[338705147,1726888251552,-222.200814,0.00015018,2]
[338705149,1726888251561,-151.0,0.00015018,2]
[338705151,1726888251570,-151.0,0.00015018,2]
[338705153,1726888251580,-612.063777,0.00015027,2]
[338705155,1726888251589,-612.063777,0.00015027,2]
[338705157,1726888251599,-151.0,0.00015027,2]
[338705159,1726888251608,-151.0,0.00015027,2]
[338705161,1726888251617,-151.0,0.00015027,2]
[338705163,1726888251626,-158.55,0.00015031,2]
[338705165,1726888251635,-158.55,0.00015031,2]
[338705167,1726888251644,-177.849874,0.00015068,2]
[338705169,1726888251653,-158.55,0.0001519,2]
[338705171,1726888251662,-158.55,0.0001519,2]
[338705172,1726888251673,-150.112234,0.000152,2]
[338705174,1726888251682,-500.0,0.00015275,2]
[338705176,1726888251691,-1249.19,0.00015275,2]
[338705178,1726888251700,-744.8,0.00015275,2]
[338705180,1726888251710,-500.0,0.00015275,2]
[338705182,1726888251719,-19197.49,0.00015275,2]
[338705184,1726888251728,-3128.96,0.00015275,2]
[338705186,1726888251738,-500.8852901,0.00015275,2]
[338705188,1726888251747,-500.0,0.00015275,2]
[338705190,1726888251756,-500.0,0.00015275,2]
[338705192,1726888251766,-500.0,0.00015275,2]
[338705194,1726888251776,-499.38622806,0.00015275,2]
[338705196,1726888251785,-500.0,0.00015275,2]
[338705198,1726888251794,-500.0,0.00015276,2]
[338705200,1726888251804,-619.18,0.00015276,2]
[338705202,1726888251813,-500.0,0.00015276,2]
[338705204,1726888251823,-500.0,0.00015276,2]
[338705206,1726888251831,-500.0,0.00015276,2]
[338705207,1726888251841,-500.0,0.00015276,2]
[338705209,1726888251850,-737.12,0.00015276,2]
[338705211,1726888251859,-500.0,0.00015276,2]
[338705213,1726888251868,-500.0,0.00015276,2]
[338705215,1726888251877,-911.99,0.00015276,2]
[338705217,1726888251886,-500.0,0.00015276,2]
[338705219,1726888251896,-500.0,0.00015276,2]
[338705221,1726888251905,-500.0,0.00015276,2]
[338705224,1726888251916,-500.0,0.00015276,2]
[338705225,1726888251925,-500.0,0.00015276,2]
[338705227,1726888251934,-500.0,0.00015276,2]
[338705229,1726888251943,-500.0,0.00015276,2]
[338705232,1726888251953,-500.0,0.00015276,2]
[338705234,1726888251963,-500.0,0.00015276,2]
[338705236,1726888251972,-500.0,0.00015276,2]
[338705238,1726888251981,-580.82,0.00015276,2]
[338705240,1726888251991,-500.0,0.00015276,2]
[338705241,1726888251999,-500.0,0.00015276,2]
[338705243,1726888252009,-500.0,0.00015276,2]
[338705246,1726888252018,-380.50274404,0.00015276,2]
[338705248,1726888252028,-500.0,0.00015276,2]
[338705250,1726888252037,-500.0,0.00015276,2]
[338705252,1726888252047,-500.0,0.00015276,2]
[338705254,1726888252056,-365.44632135,0.00015276,2]
[338705272,1726888252225,-134.55367865,0.00015276,2]
[338705275,1726888252236,-500.0,0.00015276,2]
[338705276,1726888252245,-500.0,0.00015276,2]
[338705279,1726888252255,-500.0,0.00015276,2]
[338705281,1726888252265,-484.86469734,0.00015276,2]
[338705283,1726888252277,-15.13530266,0.00015276,2]
[338705285,1726888252287,-500.0,0.00015276,2]
[338705287,1726888252298,-203.17410401,0.00015276,2]
[338705289,1726888252307,-500.0,0.00015276,2]
[338705291,1726888252316,-183.41314608,0.00015276,2]
[338705300,1726888252465,-500.0,0.00015276,2]
[338705301,1726888252475,-500.0,0.00015276,2]
[338705302,1726888252484,-500.0,0.00015276,2]
[338705303,1726888252494,-500.0,0.00015276,2]
[338705304,1726888252503,-502.31490491,0.00015276,2]
[338705305,1726888252512,-632.95,0.00015276,2]
[338705306,1726888252522,-500.0,0.00015276,2]
[338705307,1726888252533,-199.4837146,0.00015276,2]
[338705308,1726888252544,-500.0,0.00015276,2]
[338705309,1726888252555,-500.0,0.00015276,2]
[338705310,1726888252564,-534.61842894,0.00015276,2]
[338705311,1726888252574,-500.0,0.00015276,2]
[338705312,1726888252585,-500.0,0.00015276,2]
[338705313,1726888252594,-249.74266961,0.00015276,2]
[338705314,1726888252604,-500.0,0.00015276,2]
[338705315,1726888252614,-500.0,0.00015276,2]
[338705317,1726888252623,-500.0,0.00015276,2]
[338705319,1726888252632,-903.14,0.00015276,2]
[338705321,1726888252643,-500.0,0.00015276,2]
[338705323,1726888252655,-541.07080329,0.00015276,2]
[338705325,1726888252664,-1191.91,0.00015276,2]
[338705327,1726888252675,-500.0,0.00015276,2]
[338705329,1726888252685,-500.0,0.00015276,2]
[338705331,1726888252695,-817.09,0.00015276,2]
[338705333,1726888252704,-503.89207468,0.00015276,2]
[338705335,1726888252714,-500.0,0.00015276,2]
[338705337,1726888252723,-500.0,0.00015276,2]
[338705339,1726888252732,-500.0,0.00015276,2]
[338705341,1726888252742,-500.0,0.00015276,2]
[338705343,1726888252751,-200.0,0.00015279,2]
[338705345,1726888252761,-500.0,0.00015279,2]